[Event "10th Tal Memorial 2016 - Blitz"]
[Site "Moscow"]
[Date "2016.09.25"]
[Round "6"]
[White "Anand, Viswanathan"]
[Black "Mamedyarov, Shakhriyar"]
[Result "1/2-1/2"]
[ECO "C80"]
[WhiteElo "2776"]
[BlackElo "2761"]
[Annotator "ChessBase"]
[PlyCount "73"]
[EventDate "2016.??.??"]
[EventType "tourn"]
[EventCountry "RUS"]
[SourceTitle "playchess.com"]
[Source "ChessBase"]
[TimeControl "180+2"]

1. e4 {[%emt 0:00:00]} e5 {[%emt 0:00:00]} 2. Nf3 {[%emt 0:00:00]} Nc6 {
[%emt 0:00:00]} 3. Bb5 {[%emt 0:00:01]} a6 {[%emt 0:00:01]} 4. Ba4 {[%emt 0:00:
01]} Nf6 {[%emt 0:00:01]} 5. O-O {[%emt 0:00:01]} Nxe4 {[%emt 0:00:02]} 6. d4 {
[%emt 0:00:01]} b5 {[%emt 0:00:01]} 7. Bb3 {[%emt 0:00:01]} d5 {[%emt 0:00:01]}
8. dxe5 {[%emt 0:00:01]} Be6 {[%emt 0:00:01]} 9. Nbd2 {[%emt 0:00:09]} Nc5 {
[%emt 0:00:01]} 10. c3 {[%emt 0:00:01]} Be7 {[%emt 0:00:03]} 11. Bc2 {[%emt 0:
00:01]} d4 {[%emt 0:00:01]} 12. Nb3 {[%emt 0:00:01]} d3 {[%emt 0:00:01]} 13.
Bb1 {[%emt 0:00:01]} Nxb3 {[%emt 0:00:02]} 14. axb3 {[%emt 0:00:01]} Bf5 {
[%emt 0:00:01]} 15. Bf4 {[%emt 0:00:10]} O-O {[%emt 0:00:04]} 16. h3 {[%emt 0:
00:03]} Qd7 {[%emt 0:00:08]} 17. b4 {[%emt 0:00:04]} Rfd8 {[%emt 0:00:06]} 18.
g4 {[%emt 0:00:02]} Bg6 {[%emt 0:00:07]} 19. Bg3 {[%emt 0:00:02]} h5 {[%emt 0:
00:20]} 20. Re1 {[%emt 0:00:33]} d2 {[%emt 0:00:15]} 21. Re2 {[%emt 0:00:02]}
Bxb1 {[%emt 0:00:02]} 22. Rxb1 {[%emt 0:00:12]} hxg4 {[%emt 0:00:02]} 23. Rxd2
{[%emt 0:00:18]} Qf5 {[%emt 0:00:08]} 24. hxg4 {[%emt 0:00:07]} Qxg4 {[%emt 0:
00:01]} 25. Nd4 {[%emt 0:00:05]} Qg6 {[%emt 0:00:38]} 26. Nxc6 {[%emt 0:00:40]}
Qxc6 {[%emt 0:00:02]} 27. Ra1 {[%emt 0:00:09]} Qg6 {[%emt 0:00:12]} 28. Qf3 {
[%emt 0:00:10]} Bh4 {[%emt 0:00:20]} 29. Rad1 {[%emt 0:00:07]} Re8 {[%emt 0:00:
28]} 30. Rd5 {[%emt 0:00:23]} Bxg3 {[%emt 0:00:09]} 31. Qxg3 {[%emt 0:00:04]}
Qxg3+ {[%emt 0:00:05]} 32. fxg3 {[%emt 0:00:02]} Re6 {[%emt 0:00:03]} 33. Rd8+
{[%emt 0:00:16]} Rxd8 {[%emt 0:00:01]} 34. Rxd8+ {[%emt 0:00:01]} Kh7 {[%emt 0:
00:01]} 35. Rd7 {[%emt 0:00:01]} Kg6 {[%emt 0:00:15]} 36. Rxc7 {[%emt 0:00:01]}
Rxe5 {[%emt 0:00:02]} 37. Kf2 {[%emt 0:00:00]} 1/2-1/2

[Event "10th Tal Memorial 2016 - Blitz"]
[Site "Moscow"]
[Date "2016.09.25"]
[Round "6"]
[White "Aronian, Levon"]
[Black "Giri, Anish"]
[Result "0-1"]
[ECO "D14"]
[WhiteElo "2795"]
[BlackElo "2755"]
[Annotator "ChessBase"]
[PlyCount "158"]
[EventDate "2016.??.??"]
[EventType "tourn"]
[EventCountry "RUS"]
[SourceTitle "playchess.com"]
[Source "ChessBase"]
[TimeControl "180+2"]

1. Nf3 {[%emt 0:00:00]} c5 {[%emt 0:00:00]} 2. c3 {[%emt 0:00:05]} Nf6 {
[%emt 0:00:06]} 3. d4 {[%emt 0:00:01]} cxd4 {[%emt 0:00:02]} 4. cxd4 {[%emt 0:
00:01]} d5 {[%emt 0:00:01]} 5. Nc3 {[%emt 0:00:01]} Nc6 {[%emt 0:00:02]} 6. Bf4
{[%emt 0:00:02]} Bf5 {[%emt 0:00:01]} 7. Qb3 {[%emt 0:00:02]} Na5 {[%emt 0:00:
14]} 8. Qa4+ {[%emt 0:00:01]} Bd7 {[%emt 0:00:02]} 9. Qc2 {[%emt 0:00:01]} e6 {
[%emt 0:00:05]} 10. e3 {[%emt 0:00:01]} Nh5 {[%emt 0:00:15]} 11. Bg5 {[%emt 0:
00:04]} f6 {[%emt 0:00:04]} 12. Bh4 {[%emt 0:00:02]} g5 {[%emt 0:00:04]} 13. g4
{[%emt 0:00:01]} gxh4 {[%emt 0:00:10]} 14. gxh5 {[%emt 0:00:02]} Bb4 {[%emt 0:
00:05]} 15. Bd3 {[%emt 0:00:02]} Qe7 {[%emt 0:00:04]} 16. a3 {[%emt 0:00:06]}
Bxc3+ {[%emt 0:00:01]} 17. Qxc3 {[%emt 0:00:02]} b6 {[%emt 0:00:01]} 18. Ba6 {
[%emt 0:00:08]} Rg8 {[%emt 0:00:08]} 19. Nd2 {[%emt 0:00:29]} Qd6 {[%emt 0:00:
17]} 20. Rc1 {[%emt 0:00:02]} Rb8 {[%emt 0:00:40]} 21. Qc2 {[%emt 0:00:48]} Rg7
{[%emt 0:00:13]} 22. h6 {[%emt 0:00:19]} Rg6 {[%emt 0:00:01]} 23. Bd3 {[%emt 0:
00:02]} Rxh6 {[%emt 0:00:02]} 24. Rg1 {[%emt 0:00:11]} Kf7 {[%emt 0:00:05]} 25.
Qc7 {[%emt 0:00:07]} Qxc7 {[%emt 0:00:09]} 26. Rxc7 {[%emt 0:00:01]} Rb7 {
[%emt 0:00:00]} 27. Rc3 {[%emt 0:00:15]} b5 {[%emt 0:00:05]} 28. b3 {[%emt 0:
00:17]} e5 {[%emt 0:00:26]} 29. Rc5 {[%emt 0:00:08]} exd4 {[%emt 0:00:07]} 30.
exd4 {[%emt 0:00:01]} Rh5 {[%emt 0:00:02]} 31. f4 {[%emt 0:00:19]} a6 {[%emt 0:
00:12]} 32. Be4 {[%emt 0:00:07]} Ke7 {[%emt 0:00:17]} 33. Bxd5 {[%emt 0:00:07]}
Rb8 {[%emt 0:00:01]} 34. Rg7+ {[%emt 0:00:04]} Kd8 {[%emt 0:00:02]} 35. Bf3 {
[%emt 0:00:03]} Rxc5 36. dxc5 {[%emt 0:00:01]} b4 {[%emt 0:00:02]} 37. a4 {
[%emt 0:00:04]} Be6 {[%emt 0:00:04]} 38. c6 {[%emt 0:00:04]} Rc8 {[%emt 0:00:
01]} 39. Ne4 {[%emt 0:00:01]} Rxc6 40. Nxf6 {[%emt 0:00:01]} Rc3 {[%emt 0:00:
04]} 41. Bg4 Bxg4 {[%emt 0:00:04]} 42. Rxg4 {[%emt 0:00:04]} Nxb3 {[%emt 0:00:
01]} 43. Rg8+ {[%emt 0:00:01]} Ke7 {[%emt 0:00:01]} 44. Nd5+ Kf7 45. Rb8 {
[%emt 0:00:03]} Rc1+ {[%emt 0:00:02]} 46. Kf2 {[%emt 0:00:02]} Rc2+ {[%emt 0:
00:02]} 47. Ke3 {[%emt 0:00:01]} a5 {[%emt 0:00:02]} 48. f5 {[%emt 0:00:01]}
Nc5 {[%emt 0:00:02]} 49. Rc8 {[%emt 0:00:02]} b3 {[%emt 0:00:02]} 50. Rc7+ {
[%emt 0:00:01]} Kf8 {[%emt 0:00:01]} 51. Nf6 {[%emt 0:00:04]} b2 {[%emt 0:00:
02]} 52. Nxh7+ {[%emt 0:00:06]} Ke8 {[%emt 0:00:01]} 53. f6 {[%emt 0:00:02]}
Ne6 {[%emt 0:00:05]} 54. Rb7 {[%emt 0:00:05]} Rc7 {[%emt 0:00:01]} 55. f7+ {
[%emt 0:00:02]} Rxf7 {[%emt 0:00:02]} 56. Rb8+ {[%emt 0:00:01]} Kd7 {[%emt 0:
00:01]} 57. Rxb2 Rxh7 {[%emt 0:00:01]} 58. Rb5 {[%emt 0:00:01]} Rg7 {[%emt 0:
00:05]} 59. Rd5+ {[%emt 0:00:02]} Ke7 {[%emt 0:00:01]} 60. Rxa5 {[%emt 0:00:01]
} Rg2 {[%emt 0:00:01]} 61. Kf3 {[%emt 0:00:01]} Rxh2 {[%emt 0:00:02]} 62. Kg4 {
[%emt 0:00:01]} Nf8 {[%emt 0:00:06]} 63. Rh5 {[%emt 0:00:06]} Ng6 {[%emt 0:00:
00]} 64. Kf5 {[%emt 0:00:03]} Rg2 {[%emt 0:00:01]} 65. a5 {[%emt 0:00:02]} Kd7
{[%emt 0:00:04]} 66. a6 {[%emt 0:00:03]} Kc7 {[%emt 0:00:01]} 67. Rh7+ {
[%emt 0:00:01]} Kb8 {[%emt 0:00:00]} 68. a7+ {[%emt 0:00:01]} Ka8 {[%emt 0:00:
01]} 69. Kf6 {[%emt 0:00:00]} Rg4 {[%emt 0:00:01]} 70. Kf5 {[%emt 0:00:02]} Rg3
{[%emt 0:00:01]} 71. Ke4 {[%emt 0:00:05]} Ra3 {[%emt 0:00:05]} 72. Rh6 {
[%emt 0:00:02]} Ra6 {[%emt 0:00:02]} 73. Rh7 {[%emt 0:00:04]} Rxa7 74. Rh6 {
[%emt 0:00:00]} Ra6 {[%emt 0:00:03]} 75. Rh7 {[%emt 0:00:01]} Rf6 {[%emt 0:00:
01]} 76. Ke3 Kb8 77. Ke4 {[%emt 0:00:02]} Kc8 {[%emt 0:00:01]} 78. Ke3 Kd8 79.
Ke4 {[%emt 0:00:02]} Ke8 {[%emt 0:00:00]} 0-1

[Event "10th Tal Memorial 2016 - Blitz"]
[Site "Moscow"]
[Date "2016.09.25"]
[Round "6"]
[White "Kramnik, Vladimir"]
[Black "Li, Chao b"]
[Result "1/2-1/2"]
[ECO "D03"]
[WhiteElo "2808"]
[BlackElo "2746"]
[Annotator "ChessBase"]
[PlyCount "113"]
[EventDate "2016.??.??"]
[EventType "tourn"]
[EventCountry "RUS"]
[SourceTitle "playchess.com"]
[Source "ChessBase"]
[TimeControl "180+2"]

1. d4 {[%emt 0:00:00]} Nf6 {[%emt 0:00:00]} 2. Nf3 {[%emt 0:00:00]} d5 {
[%emt 0:00:04]} 3. Bg5 {[%emt 0:00:01]} g6 {[%emt 0:00:12]} 4. e3 {[%emt 0:00:
01]} Bg7 {[%emt 0:00:01]} 5. c3 {[%emt 0:00:03]} O-O {[%emt 0:00:04]} 6. Nbd2 {
[%emt 0:00:00]} b6 {[%emt 0:00:02]} 7. Bd3 {[%emt 0:00:06]} c5 {[%emt 0:00:01]}
8. O-O {[%emt 0:00:02]} Bb7 {[%emt 0:00:03]} 9. h3 {[%emt 0:00:03]} Nbd7 {
[%emt 0:00:02]} 10. a4 {[%emt 0:00:01]} Re8 {[%emt 0:00:08]} 11. a5 {[%emt 0:
00:04]} c4 {[%emt 0:00:04]} 12. Bc2 {[%emt 0:00:07]} b5 {[%emt 0:00:01]} 13. a6
{[%emt 0:00:10]} Bc6 {[%emt 0:00:01]} 14. Re1 {[%emt 0:00:03]} Qb6 {[%emt 0:00:
34]} 15. Bxf6 {[%emt 0:00:03]} Nxf6 {[%emt 0:00:01]} 16. Ne5 {[%emt 0:00:01]}
Nd7 {[%emt 0:00:25]} 17. f4 {[%emt 0:00:19]} Rad8 {[%emt 0:00:09]} 18. Nxc6 {
[%emt 0:00:19]} Qxc6 {[%emt 0:00:02]} 19. e4 {[%emt 0:00:00]} dxe4 {[%emt 0:00:
05]} 20. Bxe4 {[%emt 0:00:15]} Qc7 {[%emt 0:00:01]} 21. Qf3 {[%emt 0:00:06]}
Nb8 {[%emt 0:00:19]} 22. f5 {[%emt 0:00:06]} Bh6 {[%emt 0:00:05]} 23. Nf1 {
[%emt 0:00:19]} Rd6 {[%emt 0:00:07]} 24. Qg3 {[%emt 0:00:17]} Qd7 {[%emt 0:00:
15]} 25. Nh2 {[%emt 0:00:09]} Bg7 {[%emt 0:00:04]} 26. Rf1 {[%emt 0:00:07]}
Rxa6 {[%emt 0:00:13]} 27. Rxa6 {[%emt 0:00:01]} Nxa6 {[%emt 0:00:01]} 28. fxg6
{[%emt 0:00:01]} hxg6 {[%emt 0:00:08]} 29. Bxg6 {[%emt 0:00:00]} fxg6 {[%emt 0:
00:27]} 30. Qxg6 {[%emt 0:00:01]} Rf8 {[%emt 0:00:07]} 31. Rxf8+ {[%emt 0:00:
04]} Kxf8 {[%emt 0:00:01]} 32. Qxa6 {[%emt 0:00:02]} e5 {[%emt 0:00:01]} 33.
dxe5 {[%emt 0:00:07]} Bxe5 {[%emt 0:00:09]} 34. Qh6+ {[%emt 0:00:02]} Bg7 {
[%emt 0:00:01]} 35. Qf4+ {[%emt 0:00:01]} Kg8 {[%emt 0:00:01]} 36. Ng4 {
[%emt 0:00:08]} a5 {[%emt 0:00:01]} 37. h4 {[%emt 0:00:08]} Qe6 {[%emt 0:00:07]
} 38. Kh2 {[%emt 0:00:03]} b4 {[%emt 0:00:01]} 39. h5 {[%emt 0:00:07]} bxc3 {
[%emt 0:00:01]} 40. bxc3 {[%emt 0:00:01]} Bxc3 {[%emt 0:00:03]} 41. Nh6+ {
[%emt 0:00:04]} Kh7 {[%emt 0:00:01]} 42. Nf7 {[%emt 0:00:02]} Kg8 {[%emt 0:00:
02]} 43. Nh6+ {[%emt 0:00:03]} Kh7 {[%emt 0:00:01]} 44. Ng4 {[%emt 0:00:01]}
Bh8 {[%emt 0:00:01]} 45. h6 {[%emt 0:00:04]} c3 {[%emt 0:00:01]} 46. Qc7+ {
[%emt 0:00:02]} Kg6 {[%emt 0:00:01]} 47. Kh3 {[%emt 0:00:13]} Kh5 {[%emt 0:00:
05]} 48. Qxa5+ {[%emt 0:00:02]} Kg6 {[%emt 0:00:06]} 49. Qc7 {[%emt 0:00:11]}
Kh5 {[%emt 0:00:01]} 50. Qc5+ {[%emt 0:00:00]} Kg6 {[%emt 0:00:01]} 51. Qc7 {
[%emt 0:00:22]} Kh5 {[%emt 0:00:02]} 52. Qc5+ {[%emt 0:00:06]} Kg6 {[%emt 0:00:
01]} 53. g3 {[%emt 0:00:02]} Qe4 {[%emt 0:00:01]} 54. Qd6+ {[%emt 0:00:05]} Kh5
{[%emt 0:00:02]} 55. Qc5+ {[%emt 0:00:00]} Kg6 {[%emt 0:00:00]} 56. Qd6+ {
[%emt 0:00:02]} Kh5 {[%emt 0:00:01]} 57. Qc5+ {[%emt 0:00:01]} 1/2-1/2

[Event "10th Tal Memorial 2016 - Blitz"]
[Site "Moscow"]
[Date "2016.09.25"]
[Round "6"]
[White "Nepomniachtchi, Ian"]
[Black "Svidler, Peter"]
[Result "1/2-1/2"]
[ECO "C44"]
[WhiteElo "2740"]
[BlackElo "2745"]
[Annotator "ChessBase"]
[PlyCount "55"]
[EventDate "2016.??.??"]
[EventType "tourn"]
[EventCountry "RUS"]
[SourceTitle "playchess.com"]
[Source "ChessBase"]
[TimeControl "180+2"]

1. e4 {[%emt 0:00:00]} e5 {[%emt 0:00:00]} 2. Nf3 {[%emt 0:00:00]} Nc6 {
[%emt 0:00:00]} 3. d4 {[%emt 0:00:02]} exd4 {[%emt 0:00:02]} 4. Nxd4 {[%emt 0:
00:01]} Bb4+ {[%emt 0:00:14]} 5. c3 {[%emt 0:00:02]} Be7 {[%emt 0:00:01]} 6. g3
{[%emt 0:00:03]} Nf6 {[%emt 0:00:03]} 7. Bg2 {[%emt 0:00:01]} O-O {[%emt 0:00:
02]} 8. O-O {[%emt 0:00:01]} Re8 {[%emt 0:00:02]} 9. Be3 {[%emt 0:00:05]} d5 {
[%emt 0:00:42]} 10. exd5 {[%emt 0:00:02]} Nxd5 {[%emt 0:00:01]} 11. Nxc6 {
[%emt 0:00:02]} bxc6 {[%emt 0:00:00]} 12. Bd4 {[%emt 0:00:04]} Rb8 {[%emt 0:00:
13]} 13. c4 {[%emt 0:00:18]} Nb4 {[%emt 0:00:41]} 14. Bxa7 {[%emt 0:00:03]} Ra8
{[%emt 0:00:12]} 15. Be3 {[%emt 0:00:01]} Qxd1 {[%emt 0:00:17]} 16. Rxd1 {
[%emt 0:00:02]} Be6 {[%emt 0:00:11]} 17. Nd2 {[%emt 0:00:38]} Reb8 {[%emt 0:00:
08]} 18. Be4 {[%emt 0:00:24]} f5 {[%emt 0:00:07]} 19. a3 {[%emt 0:00:10]} fxe4
{[%emt 0:00:01]} 20. axb4 {[%emt 0:00:01]} Rxa1 {[%emt 0:00:01]} 21. Rxa1 {
[%emt 0:00:01]} Bxb4 {[%emt 0:00:01]} 22. Nxe4 {[%emt 0:01:11]} Bxc4 {[%emt 0:
00:00]} 23. Nc3 {[%emt 0:00:03]} Bd6 {[%emt 0:00:05]} 24. Ra4 {[%emt 0:00:12]}
Be6 {[%emt 0:00:08]} 25. Bc1 {[%emt 0:00:02]} h6 {[%emt 0:00:07]} 26. Kg2 {
[%emt 0:00:04]} Kf7 {[%emt 0:00:01]} 27. Rd4 {[%emt 0:00:04]} Be5 {[%emt 0:00:
06]} 28. Ra4 {[%emt 0:00:06]} 1/2-1/2

[Event "10th Tal Memorial 2016 - Blitz"]
[Site "Moscow"]
[Date "2016.09.25"]
[Round "7"]
[White "Li, Chao b"]
[Black "Aronian, Levon"]
[Result "0-1"]
[ECO "D37"]
[WhiteElo "2746"]
[BlackElo "2795"]
[Annotator "ChessBase"]
[PlyCount "48"]
[EventDate "2016.??.??"]
[EventType "tourn"]
[EventCountry "RUS"]
[SourceTitle "playchess.com"]
[Source "ChessBase"]
[TimeControl "180+2"]

1. d4 {[%emt 0:00:00]} Nf6 {[%emt 0:00:00]} 2. c4 {[%emt 0:00:02]} e6 {[%emt 0:
00:00]} 3. Nf3 {[%emt 0:00:03]} d5 {[%emt 0:00:02]} 4. Nc3 {[%emt 0:00:02]}
Nbd7 {[%emt 0:00:01]} 5. Bf4 {[%emt 0:00:06]} dxc4 {[%emt 0:00:02]} 6. e3 {
[%emt 0:00:04]} b5 {[%emt 0:00:02]} 7. Nxb5 {[%emt 0:00:03]} Bb4+ {[%emt 0:00:
01]} 8. Nd2 {[%emt 0:00:06]} Nd5 {[%emt 0:00:03]} 9. Bg3 {[%emt 0:00:07]} N7b6
{[%emt 0:00:08]} 10. Rc1 {[%emt 0:00:08]} O-O {[%emt 0:00:42]} 11. Be2 {
[%emt 0:00:01]} Bd7 {[%emt 0:00:08]} 12. a4 {[%emt 0:01:47]} a6 {[%emt 0:00:08]
} 13. e4 {[%emt 0:00:02]} axb5 {[%emt 0:00:12]} 14. exd5 {[%emt 0:00:01]} Nxa4
{[%emt 0:00:06]} 15. Qc2 {[%emt 0:00:08]} exd5 {[%emt 0:00:07]} 16. O-O {
[%emt 0:00:02]} Qf6 {[%emt 0:00:08]} 17. Be5 {[%emt 0:00:43]} Qg6 {[%emt 0:00:
01]} 18. Qxg6 {[%emt 0:00:04]} hxg6 {[%emt 0:00:02]} 19. Nb1 {[%emt 0:00:03]}
Nxb2 {[%emt 0:00:18]} 20. Bxc7 {[%emt 0:00:01]} Ra2 {[%emt 0:00:02]} 21. Bf3 {
[%emt 0:00:01]} Nd3 {[%emt 0:00:02]} 22. Rcd1 {[%emt 0:00:01]} Be6 {[%emt 0:00:
10]} 23. h4 {[%emt 0:00:04]} Rfa8 {[%emt 0:00:07]} 24. g3 {[%emt 0:00:03]} Rc2
{[%emt 0:00:03]} 0-1

[Event "10th Tal Memorial 2016 - Blitz"]
[Site "Moscow"]
[Date "2016.09.25"]
[Round "7"]
[White "Gelfand, Boris"]
[Black "Nepomniachtchi, Ian"]
[Result "0-1"]
[ECO "A48"]
[WhiteElo "2743"]
[BlackElo "2740"]
[Annotator "ChessBase"]
[PlyCount "162"]
[EventDate "2016.??.??"]
[EventType "tourn"]
[EventCountry "RUS"]
[SourceTitle "playchess.com"]
[Source "ChessBase"]
[TimeControl "180+2"]

1. d4 {[%emt 0:00:00]} Nf6 {[%emt 0:00:00]} 2. Nf3 {[%emt 0:00:00]} g6 {
[%emt 0:00:00]} 3. Bg5 {[%emt 0:00:02]} Bg7 {[%emt 0:00:00]} 4. Nbd2 {[%emt 0:
00:03]} O-O {[%emt 0:00:01]} 5. c3 {[%emt 0:00:00]} d6 {[%emt 0:00:04]} 6. e4 {
[%emt 0:00:03]} c5 {[%emt 0:00:02]} 7. d5 {[%emt 0:00:01]} e6 {[%emt 0:00:11]}
8. dxe6 {[%emt 0:00:01]} Bxe6 {[%emt 0:00:01]} 9. Be2 {[%emt 0:00:06]} h6 {
[%emt 0:00:01]} 10. Bh4 {[%emt 0:00:01]} Nc6 {[%emt 0:00:01]} 11. O-O {[%emt 0:
00:02]} Re8 {[%emt 0:00:01]} 12. Re1 {[%emt 0:00:19]} Qc7 {[%emt 0:00:01]} 13.
Bc4 {[%emt 0:00:33]} Nh5 {[%emt 0:00:09]} 14. Bg3 {[%emt 0:00:14]} Nxg3 {
[%emt 0:00:04]} 15. hxg3 {[%emt 0:00:01]} Rad8 {[%emt 0:00:03]} 16. Qc2 {
[%emt 0:00:05]} Na5 {[%emt 0:00:29]} 17. Bxe6 {[%emt 0:00:05]} Rxe6 {[%emt 0:
00:01]} 18. Rad1 {[%emt 0:00:02]} Rde8 {[%emt 0:00:01]} 19. Nf1 {[%emt 0:00:14]
} Qc6 {[%emt 0:00:03]} 20. N1d2 {[%emt 0:00:08]} b5 {[%emt 0:00:02]} 21. Qd3 {
[%emt 0:00:04]} a6 {[%emt 0:00:07]} 22. Re3 {[%emt 0:00:05]} Qb7 {[%emt 0:00:
26]} 23. Rde1 {[%emt 0:00:06]} c4 {[%emt 0:00:03]} 24. Qc2 {[%emt 0:00:05]} d5
{[%emt 0:00:02]} 25. exd5 {[%emt 0:00:16]} Rxe3 {[%emt 0:00:02]} 26. Rxe3 {
[%emt 0:00:00]} Rxe3 {[%emt 0:00:01]} 27. fxe3 {[%emt 0:00:02]} Qxd5 {[%emt 0:
00:01]} 28. Qe4 {[%emt 0:00:02]} Qxe4 {[%emt 0:00:39]} 29. Nxe4 {[%emt 0:00:01]
} Nb7 {[%emt 0:00:01]} 30. g4 {[%emt 0:00:01]} Kf8 {[%emt 0:00:08]} 31. Nd4 {
[%emt 0:00:05]} Ke7 {[%emt 0:00:02]} 32. Kf2 {[%emt 0:00:02]} Kd7 {[%emt 0:00:
06]} 33. Kf3 {[%emt 0:00:04]} Be5 {[%emt 0:00:02]} 34. Nc2 {[%emt 0:00:06]} Ke6
{[%emt 0:00:15]} 35. Nb4 {[%emt 0:00:11]} a5 {[%emt 0:00:00]} 36. Nc6 {[%emt 0:
00:03]} Kd5 {[%emt 0:00:14]} 37. Ne7+ {[%emt 0:00:09]} Ke6 {[%emt 0:00:01]} 38.
Nc6 {[%emt 0:00:01]} b4 {[%emt 0:00:07]} 39. cxb4 {[%emt 0:00:21]} axb4 {
[%emt 0:00:03]} 40. Nxb4 {[%emt 0:00:03]} Bxb2 {[%emt 0:00:02]} 41. Nc2 {
[%emt 0:00:04]} Ke5 {[%emt 0:00:07]} 42. Nd2 {[%emt 0:00:04]} Kd5 {[%emt 0:00:
05]} 43. Ke2 {[%emt 0:00:06]} Nd6 {[%emt 0:00:01]} 44. Nf3 {[%emt 0:00:03]} Nb5
{[%emt 0:00:02]} 45. Kd2 {[%emt 0:00:11]} Nc3 {[%emt 0:00:06]} 46. Nb4+ {
[%emt 0:00:03]} Kc5 {[%emt 0:00:01]} 47. a3 {[%emt 0:00:05]} Ne4+ {[%emt 0:00:
06]} 48. Ke2 {[%emt 0:00:03]} Bxa3 49. Nc2 Bb2 {[%emt 0:00:03]} 50. Nfe1 {
[%emt 0:00:03]} Bc3 {[%emt 0:00:05]} 51. Nf3 {[%emt 0:00:01]} Bf6 {[%emt 0:00:
02]} 52. Nfe1 {[%emt 0:00:03]} Nc3+ {[%emt 0:00:02]} 53. Kd2 {[%emt 0:00:02]}
Nd5 {[%emt 0:00:03]} 54. Nf3 {[%emt 0:00:02]} Bc3+ {[%emt 0:00:02]} 55. Ke2 {
[%emt 0:00:01]} Bg7 {[%emt 0:00:02]} 56. Kd2 {[%emt 0:00:01]} Bc3+ {[%emt 0:00:
03]} 57. Ke2 {[%emt 0:00:01]} Bf6 {[%emt 0:00:01]} 58. Kd2 {[%emt 0:00:00]} Nb4
{[%emt 0:00:04]} 59. Nxb4 {[%emt 0:00:05]} Kxb4 {[%emt 0:00:01]} 60. Kc2 {
[%emt 0:00:01]} Kc5 {[%emt 0:00:02]} 61. e4 {[%emt 0:00:01]} Bg7 {[%emt 0:00:
03]} 62. Kd2 {[%emt 0:00:01]} Kb4 {[%emt 0:00:03]} 63. Kc2 {[%emt 0:00:01]} c3
{[%emt 0:00:04]} 64. Kd3 {[%emt 0:00:01]} Kb3 {[%emt 0:00:01]} 65. Ne1 {
[%emt 0:00:01]} Bf8 {[%emt 0:00:01]} 66. Nc2 {[%emt 0:00:02]} Bc5 {[%emt 0:00:
01]} 67. Ne1 {[%emt 0:00:02]} Bf2 {[%emt 0:00:07]} 68. Nc2 {[%emt 0:00:01]} Kb2
{[%emt 0:00:03]} 69. Nb4 {[%emt 0:00:01]} Bh4 {[%emt 0:00:06]} 70. Nc2 {
[%emt 0:00:02]} Bf6 {[%emt 0:00:01]} 71. Nb4 {[%emt 0:00:05]} Bg7 {[%emt 0:00:
03]} 72. Nc2 {[%emt 0:00:03]} Kc1 {[%emt 0:00:01]} 73. Ne3 {[%emt 0:00:01]} Bh8
{[%emt 0:00:01]} 74. Nc2 {[%emt 0:00:05]} Kd1 {[%emt 0:00:02]} 75. Nb4 {
[%emt 0:00:01]} Ke1 {[%emt 0:00:02]} 76. Ke3 {[%emt 0:00:01]} Kf1 {[%emt 0:00:
06]} 77. Kf3 {[%emt 0:00:00]} Be5 {[%emt 0:00:02]} 78. Nc2 {[%emt 0:00:01]} Bd6
{[%emt 0:00:01]} 79. Na1 {[%emt 0:00:03]} Bc5 {[%emt 0:00:02]} 80. Nc2 {
[%emt 0:00:01]} f6 {[%emt 0:00:03]} 81. g3 {[%emt 0:00:05]} g5 {[%emt 0:00:01]}
0-1

[Event "10th Tal Memorial 2016 - Blitz"]
[Site "Moscow"]
[Date "2016.09.25"]
[Round "7"]
[White "Giri, Anish"]
[Black "Anand, Viswanathan"]
[Result "1-0"]
[ECO "B90"]
[WhiteElo "2755"]
[BlackElo "2776"]
[Annotator "ChessBase"]
[PlyCount "91"]
[EventDate "2016.??.??"]
[EventType "tourn"]
[EventCountry "RUS"]
[SourceTitle "playchess.com"]
[Source "ChessBase"]
[TimeControl "180+2"]

1. e4 {[%emt 0:00:00]} c5 {[%emt 0:00:00]} 2. Nf3 {[%emt 0:00:00]} d6 {[%emt 0:
00:00]} 3. d4 {[%emt 0:00:01]} cxd4 {[%emt 0:00:01]} 4. Nxd4 {[%emt 0:00:01]}
Nf6 {[%emt 0:00:01]} 5. Nc3 {[%emt 0:00:01]} a6 {[%emt 0:00:00]} 6. Be3 {
[%emt 0:00:01]} e5 {[%emt 0:00:02]} 7. Nf3 {[%emt 0:00:01]} Be7 {[%emt 0:00:01]
} 8. Bc4 {[%emt 0:00:00]} O-O {[%emt 0:00:03]} 9. O-O {[%emt 0:00:01]} Qc7 {
[%emt 0:00:01]} 10. Bb3 {[%emt 0:00:01]} Be6 {[%emt 0:00:02]} 11. Nh4 {[%emt 0:
00:01]} g6 {[%emt 0:00:06]} 12. Bh6 {[%emt 0:00:05]} Re8 {[%emt 0:00:05]} 13.
Qd2 {[%emt 0:00:01]} Nbd7 {[%emt 0:00:08]} 14. Nf5 {[%emt 0:00:01]} Bxb3 {
[%emt 0:00:50]} 15. axb3 {[%emt 0:00:07]} Nc5 {[%emt 0:00:05]} 16. Rae1 {
[%emt 0:00:18]} Ne6 {[%emt 0:00:09]} 17. Ne3 {[%emt 0:00:09]} Rac8 {[%emt 0:00:
06]} 18. h3 {[%emt 0:00:33]} Bf8 {[%emt 0:00:02]} 19. Bxf8 {[%emt 0:00:08]}
Rxf8 {[%emt 0:00:01]} 20. Ncd5 {[%emt 0:00:14]} Nxd5 {[%emt 0:00:09]} 21. Nxd5
{[%emt 0:00:00]} Qd8 {[%emt 0:00:01]} 22. b4 {[%emt 0:00:17]} Nf4 {[%emt 0:00:
26]} 23. Nxf4 exf4 24. c3 {[%emt 0:00:20]} Qf6 {[%emt 0:00:03]} 25. Qd5 {
[%emt 0:00:22]} f3 {[%emt 0:00:24]} 26. g3 {[%emt 0:00:02]} Rc7 {[%emt 0:00:02]
} 27. Re3 {[%emt 0:00:02]} Re8 {[%emt 0:00:02]} 28. Qd3 {[%emt 0:00:14]} Re5 {
[%emt 0:00:06]} 29. Rd1 {[%emt 0:00:14]} Rd7 {[%emt 0:00:22]} 30. Rxf3 {
[%emt 0:00:13]} Qe6 {[%emt 0:00:00]} 31. Kg2 {[%emt 0:00:06]} Rxe4 {[%emt 0:00:
02]} 32. Rf6 {[%emt 0:00:02]} Qxf6 {[%emt 0:00:02]} 33. Qxe4 {[%emt 0:00:00]}
Qe6 {[%emt 0:00:02]} 34. Qd5 {[%emt 0:00:05]} Kf8 {[%emt 0:00:11]} 35. Qd4 {
[%emt 0:00:05]} Kg8 {[%emt 0:00:04]} 36. Rd3 {[%emt 0:00:01]} Re7 {[%emt 0:00:
16]} 37. Qxd6 {[%emt 0:00:14]} Qxd6 {[%emt 0:00:06]} 38. Rxd6 {[%emt 0:00:01]}
Re2 {[%emt 0:00:01]} 39. Rb6 {[%emt 0:00:04]} Rxb2 {[%emt 0:00:01]} 40. Rxb7 {
[%emt 0:00:01]} a5 {[%emt 0:00:01]} 41. b5 {[%emt 0:00:01]} a4 {[%emt 0:00:02]}
42. c4 {[%emt 0:00:03]} Rb4 {[%emt 0:00:07]} 43. c5 {[%emt 0:00:07]} a3 {
[%emt 0:00:01]} 44. b6 {[%emt 0:00:01]} Rc4 {[%emt 0:00:07]} 45. Rb8+ {[%emt 0:
00:00]} Kg7 {[%emt 0:00:01]} 46. b7 {[%emt 0:00:01]} 1-0